[Event "*** Titled Tuesday Blitz"]
[Site "Chess.com"]
[Date "2020.10.20"]
[Round "2"]
[White "RobertoJBM"]
[Black "BigAl"]
[Result "0-1"]
[WhiteElo "2690"]
[BlackElo "2469"]
[TimeControl "180+1"]
[EndTime "10:17:47 PDT"]
[Termination "BigAl won on time"]

1. d4 {[%clk 0:03:00.9]} 1... Nf6 {[%clk 0:02:59.3]} 2. c4 {[%clk 0:03:01.1]}
2... g6 {[%clk 0:03:00]} 3. Nc3 {[%clk 0:03:01.1]} 3... Bg7 {[%clk 0:03:00.9]}
4. e4 {[%clk 0:03:01.1]} 4... O-O {[%clk 0:03:01.7]} 5. Nf3 {[%clk 0:03:01.7]}
5... d6 {[%clk 0:03:02.2]} 6. Be2 {[%clk 0:03:02.1]} 6... Bg4 {[%clk 0:03:02.8]}
7. Be3 {[%clk 0:03:01]} 7... Nbd7 {[%clk 0:03:03.2]} 8. Rc1 {[%clk 0:03:00.6]}
8... e5 {[%clk 0:03:03.7]} 9. d5 {[%clk 0:02:58.2]} 9... a5 {[%clk 0:03:04.2]}
10. Nd2 {[%clk 0:02:57.8]} 10... Bxe2 {[%clk 0:03:03.9]} 11. Qxe2 {[%clk
0:02:58.7]} 11... Nh5 {[%clk 0:03:03.5]} 12. g3 {[%clk 0:02:55.3]} 12... b6
{[%clk 0:03:04]} 13. b3 {[%clk 0:02:50.1]} 13... Qe8 {[%clk 0:03:02.4]} 14. f3
{[%clk 0:02:46.3]} 14... f5 {[%clk 0:03:02.1]} 15. Bf2 {[%clk 0:02:46.7]} 15...
Qe7 {[%clk 0:02:55.2]} 16. Nb5 {[%clk 0:02:43.6]} 16... Nc5 {[%clk 0:02:50]} 17.
O-O {[%clk 0:02:37.7]} 17... Bh6 {[%clk 0:02:49.9]} 18. Rce1 {[%clk 0:02:34.1]}
18... Qg5 {[%clk 0:02:26.3]} 19. Bxc5 {[%clk 0:02:14.3]} 19... bxc5 {[%clk
0:02:21.4]} 20. Nb1 {[%clk 0:02:09.3]} 20... Rf7 {[%clk 0:02:15.6]} 21. N1c3
{[%clk 0:02:06.9]} 21... Raf8 {[%clk 0:02:09.3]} 22. Kh1 {[%clk 0:01:59.8]}
22... Nf6 {[%clk 0:01:59.5]} 23. f4 {[%clk 0:01:54.4]} 23... exf4 {[%clk
0:01:53.3]} 24. gxf4 {[%clk 0:01:55.3]} 24... Qh4 {[%clk 0:01:53.6]} 25. e5
{[%clk 0:01:55.3]} 25... dxe5 {[%clk 0:01:39.3]} 26. fxe5 {[%clk 0:01:56.2]}
26... Nh5 {[%clk 0:01:37]} 27. Qf2 {[%clk 0:01:52.3]} 27... Qh3 {[%clk
0:01:21.3]} 28. e6 {[%clk 0:01:48.9]} 28... Re7 {[%clk 0:01:20.7]} 29. Qg2
{[%clk 0:01:37.2]} 29... Qh4 {[%clk 0:01:15.1]} 30. Ne2 {[%clk 0:01:34.8]} 30...
f4 {[%clk 0:01:12.1]} 31. Rf3 {[%clk 0:01:28.5]} 31... Qxe1+ {[%clk 0:01:11.7]}
32. Rf1 {[%clk 0:01:16.2]} 32... Qh4 {[%clk 0:01:11.7]} 33. Rf3 {[%clk
0:01:15.9]} 33... Qe1+ {[%clk 0:00:59.2]} 34. Rf1 {[%clk 0:01:15.2]} 34... Qd2
{[%clk 0:00:58.7]} 35. Nec3 {[%clk 0:01:13.7]} 35... Qd3 {[%clk 0:00:52.7]} 36.
Rf3 {[%clk 0:01:11.1]} 36... Qf5 {[%clk 0:00:51.6]} 37. Rf1 {[%clk 0:01:07.4]}
37... f3 {[%clk 0:00:50.9]} 38. Qf2 {[%clk 0:00:59.7]} 38... Qh3 {[%clk
0:00:50.7]} 39. Ne4 {[%clk 0:00:54.6]} 39... Be3 {[%clk 0:00:44.7]} 0-1

[Event "*** Titled Tuesday Blitz"]
[Site "Chess.com"]
[Date "2020.10.20"]
[Round "2"]
[White "TV27"]
[Black "Berant"]
[Result "0-1"]
[WhiteElo "2061"]
[BlackElo "2380"]
[TimeControl "180+1"]
[EndTime "10:17:47 PDT"]
[Termination "Berant won by resignation"]

1. d4 {[%clk 0:03:00.9]} 1... Nf6 {[%clk 0:02:57]} 2. c4 {[%clk 0:02:59.4]} 2...
e6 {[%clk 0:02:56.4]} 3. Nf3 {[%clk 0:02:58.3]} 3... d5 {[%clk 0:02:53.9]} 4. e3
{[%clk 0:02:57]} 4... c5 {[%clk 0:02:43.6]} 5. Nc3 {[%clk 0:02:54.7]} 5... cxd4
{[%clk 0:02:42.4]} 6. Nxd4 {[%clk 0:02:51]} 6... Nc6 {[%clk 0:02:42.9]} 7. cxd5
{[%clk 0:02:46.4]} 7... Nxd5 {[%clk 0:02:39.8]} 8. Nxc6 {[%clk 0:02:42]} 8...
bxc6 {[%clk 0:02:32.6]} 9. e4 {[%clk 0:02:37.7]} 9... Nxc3 {[%clk 0:02:31.1]}
10. Qxd8+ {[%clk 0:02:36.6]} 10... Kxd8 {[%clk 0:02:31.4]} 11. bxc3 {[%clk
0:02:36.2]} 11... Bd6 {[%clk 0:02:28.7]} 12. Be3 {[%clk 0:02:22.3]} 12... Kc7
{[%clk 0:02:24.7]} 13. Bc4 {[%clk 0:02:15.8]} 13... a5 {[%clk 0:02:13.7]} 14.
Ke2 {[%clk 0:02:05.7]} 14... Ba6 {[%clk 0:02:12.9]} 15. Bxa6 {[%clk 0:02:04.2]}
15... Rxa6 {[%clk 0:02:13.8]} 16. Rab1 {[%clk 0:02:01.5]} 16... a4 {[%clk
0:02:10.4]} 17. Rb2 {[%clk 0:01:43.2]} 17... Rb8 {[%clk 0:02:06.7]} 18. Rhb1
{[%clk 0:01:40.4]} 18... Rxb2+ {[%clk 0:02:05.8]} 19. Rxb2 {[%clk 0:01:40.2]}
19... h5 {[%clk 0:01:55.9]} 20. h3 {[%clk 0:01:38.8]} 20... g6 {[%clk 0:01:55]}
21. Rb1 {[%clk 0:01:18.7]} 21... c5 {[%clk 0:01:38.6]} 22. Kd3 {[%clk
0:01:17.4]} 22... a3 {[%clk 0:01:32.4]} 23. e5 {[%clk 0:01:02.5]} 23... Bxe5
{[%clk 0:01:29.2]} 24. Bxc5 {[%clk 0:01:01.7]} 24... Bd6 {[%clk 0:01:27.4]} 25.
Bxd6+ {[%clk 0:00:52.8]} 25... Rxd6+ {[%clk 0:01:28.3]} 26. Kc2 {[%clk
0:00:52.3]} 26... Rd5 {[%clk 0:01:21.2]} 27. Rb3 {[%clk 0:00:51.6]} 27... Rg5
{[%clk 0:01:19.5]} 28. g3 {[%clk 0:00:49.5]} 28... Rf5 {[%clk 0:01:19.4]} 29. f4
{[%clk 0:00:48.7]} 29... h4 {[%clk 0:01:13.6]} 30. gxh4 {[%clk 0:00:40.4]} 30...
Rxf4 {[%clk 0:01:13.5]} 31. Rxa3 {[%clk 0:00:39.9]} 31... f5 {[%clk 0:01:12.7]}
32. Ra6 {[%clk 0:00:37.5]} 32... Kd7 {[%clk 0:01:10.8]} 33. Kb3 {[%clk
0:00:36.2]} 33... Rxh4 {[%clk 0:01:11]} 34. c4 {[%clk 0:00:31.5]} 34... Rxh3+
{[%clk 0:01:11]} 35. Kb4 {[%clk 0:00:31.4]} 35... g5 {[%clk 0:01:11.6]} 36. c5
{[%clk 0:00:31.1]} 36... Rh1 {[%clk 0:01:07.2]} 37. c6+ {[%clk 0:00:30.6]} 37...
Kd6 {[%clk 0:01:04.1]} 38. Ka5 {[%clk 0:00:27.5]} 38... g4 {[%clk 0:00:56.2]}
39. Kb6 {[%clk 0:00:26.5]} 39... Rb1+ {[%clk 0:00:55.4]} 40. Ka7 {[%clk
0:00:25.5]} 40... Kc7 {[%clk 0:00:52.8]} 41. a4 {[%clk 0:00:20.4]} 41... g3
{[%clk 0:00:52.2]} 42. a5 {[%clk 0:00:20.4]} 42... g2 {[%clk 0:00:51]} 43. Rb6
{[%clk 0:00:19.8]} 43... Rxb6 {[%clk 0:00:49.7]} 44. axb6+ {[%clk 0:00:19.2]}
44... Kxc6 {[%clk 0:00:49.9]} 45. b7 {[%clk 0:00:17.6]} 45... g1=Q+ {[%clk
0:00:50.1]} 46. Kb8 {[%clk 0:00:17.6]} 46... Qb6 {[%clk 0:00:48.3]} 0-1

[Event "*** Titled Tuesday Blitz"]
[Site "Chess.com"]
[Date "2020.10.20"]
[Round "2"]
[White "AustrianFalcon"]
[Black "jlmanzanares"]
[Result "1-0"]
[WhiteElo "2446"]
[BlackElo "2248"]
[TimeControl "180+1"]
[EndTime "10:17:49 PDT"]
[Termination "AustrianFalcon won by resignation"]

1. Nf3 {[%clk 0:03:00.9]} 1... Nf6 {[%clk 0:02:59.3]} 2. c4 {[%clk 0:02:59.3]}
2... g6 {[%clk 0:02:58.6]} 3. Nc3 {[%clk 0:02:55.7]} 3... Bg7 {[%clk 0:02:58]}
4. g3 {[%clk 0:02:51.7]} 4... d6 {[%clk 0:02:57.7]} 5. Bg2 {[%clk 0:02:46.7]}
5... O-O {[%clk 0:02:58.6]} 6. O-O {[%clk 0:02:43.6]} 6... Nc6 {[%clk
0:02:58.4]} 7. Rb1 {[%clk 0:02:40.1]} 7... a5 {[%clk 0:02:57.1]} 8. a3 {[%clk
0:02:35.6]} 8... e5 {[%clk 0:02:56.2]} 9. d3 {[%clk 0:02:35.3]} 9... h6 {[%clk
0:02:55.1]} 10. b4 {[%clk 0:02:33.7]} 10... axb4 {[%clk 0:02:54.4]} 11. axb4
{[%clk 0:02:34.6]} 11... Rb8 {[%clk 0:02:54.5]} 12. b5 {[%clk 0:02:30.2]} 12...
Ne7 {[%clk 0:02:54.3]} 13. e4 {[%clk 0:02:30.4]} 13... Ne8 {[%clk 0:02:48.6]}
14. d4 {[%clk 0:02:26.9]} 14... Bg4 {[%clk 0:02:38.2]} 15. dxe5 {[%clk
0:02:08.8]} 15... Bxe5 {[%clk 0:02:35.1]} 16. Qd3 {[%clk 0:01:57.1]} 16... Bg7
{[%clk 0:02:30.1]} 17. Nd4 {[%clk 0:01:46.9]} 17... Nf6 {[%clk 0:02:23.5]} 18.
h3 {[%clk 0:01:38.9]} 18... Bc8 {[%clk 0:02:20.2]} 19. f4 {[%clk 0:01:37.7]}
19... Nd7 {[%clk 0:02:17]} 20. Be3 {[%clk 0:01:25]} 20... Nc5 {[%clk 0:02:14.2]}
21. Qd2 {[%clk 0:01:17.5]} 21... Ra8 {[%clk 0:02:12.8]} 22. f5 {[%clk
0:01:04.6]} 22... gxf5 {[%clk 0:02:04.2]} 23. Nxf5 {[%clk 0:01:01.1]} 23... Nxf5
{[%clk 0:01:38.7]} 24. exf5 {[%clk 0:01:02]} 24... Qf6 {[%clk 0:01:37.8]} 25.
Nd5 {[%clk 0:01:00]} 25... Qe5 {[%clk 0:01:31.1]} 26. f6 {[%clk 0:00:58.5]}
26... Bh8 {[%clk 0:01:10.7]} 27. Ne7+ {[%clk 0:00:53.1]} 27... Kh7 {[%clk
0:00:57.4]} 28. Qc2+ {[%clk 0:00:45.6]} 28... Bf5 {[%clk 0:00:53]} 29. Nxf5
{[%clk 0:00:31.5]} 29... Bxf6 {[%clk 0:00:50.2]} 30. Bd4 {[%clk 0:00:27.5]}
30... Qe6 {[%clk 0:00:38.5]} 31. Ng7+ {[%clk 0:00:19]} 31... Kxg7 {[%clk
0:00:37.5]} 32. Bxf6+ {[%clk 0:00:18.4]} 32... Kg8 {[%clk 0:00:36.7]} 33. Rf4
{[%clk 0:00:16.3]} 33... Qe3+ {[%clk 0:00:35.5]} 34. Kh2 {[%clk 0:00:15.9]}
34... Rfe8 {[%clk 0:00:35.2]} 35. Rg4+ {[%clk 0:00:16.1]} 35... Kf8 {[%clk
0:00:35.2]} 36. Qh7 {[%clk 0:00:15.9]} 1-0

[Event "*** Titled Tuesday Blitz"]
[Site "Chess.com"]
[Date "2020.10.20"]
[Round "2"]
[White "Blitzstream"]
[Black "AndreyNeves"]
[Result "1-0"]
[WhiteElo "2667"]
[BlackElo "2270"]
[TimeControl "180+1"]
[EndTime "10:17:50 PDT"]
[Termination "Blitzstream won on time"]

1. d4 {[%clk 0:03:00.1]} 1... d5 {[%clk 0:02:40.5]} 2. Bf4 {[%clk 0:02:59.1]}
2... Nf6 {[%clk 0:02:38.1]} 3. e3 {[%clk 0:02:59.1]} 3... c5 {[%clk 0:02:36.6]}
4. dxc5 {[%clk 0:03:00]} 4... Nc6 {[%clk 0:02:35.2]} 5. Bb5 {[%clk 0:02:56.9]}
5... Qa5+ {[%clk 0:02:25.5]} 6. Nc3 {[%clk 0:02:55.7]} 6... Ne4 {[%clk
0:02:25.4]} 7. Ne2 {[%clk 0:02:47.2]} 7... e6 {[%clk 0:02:15.9]} 8. a3 {[%clk
0:02:19.9]} 8... Nxc3 {[%clk 0:01:54]} 9. Nxc3 {[%clk 0:02:17.9]} 9... Bd7
{[%clk 0:01:28.8]} 10. b4 {[%clk 0:02:15.4]} 10... Qd8 {[%clk 0:01:27.7]} 11.
O-O {[%clk 0:02:14.4]} 11... Be7 {[%clk 0:01:18]} 12. Bg3 {[%clk 0:02:14.3]}
12... O-O {[%clk 0:01:16.5]} 13. e4 {[%clk 0:02:11.4]} 13... d4 {[%clk
0:01:10.6]} 14. Ne2 {[%clk 0:02:10.3]} 14... e5 {[%clk 0:01:10.4]} 15. Bxc6
{[%clk 0:02:10.2]} 15... Bxc6 {[%clk 0:01:09.2]} 16. Bxe5 {[%clk 0:02:10.1]}
16... Bxe4 {[%clk 0:01:09.2]} 17. Qxd4 {[%clk 0:02:07.9]} 17... Qxd4 {[%clk
0:01:05.4]} 18. Nxd4 {[%clk 0:02:08.8]} 18... Rad8 {[%clk 0:00:54.4]} 19. Rad1
{[%clk 0:02:07.6]} 19... Rd5 {[%clk 0:00:49.1]} 20. Bg3 {[%clk 0:01:50.8]} 20...
Rfd8 {[%clk 0:00:43.6]} 21. c3 {[%clk 0:01:50.1]} 21... Bf6 {[%clk 0:00:34.7]}
22. Rfe1 {[%clk 0:01:48.4]} 22... Bxd4 {[%clk 0:00:28.6]} 23. Rxd4 {[%clk
0:01:44.5]} 23... Rxd4 {[%clk 0:00:28.2]} 24. cxd4 {[%clk 0:01:45.4]} 24... Rxd4
{[%clk 0:00:28.2]} 25. Be5 {[%clk 0:01:06.7]} 25... Rd3 {[%clk 0:00:19.2]} 26.
a4 {[%clk 0:00:56.2]} 26... f6 {[%clk 0:00:17.5]} 27. Bd6 {[%clk 0:00:51.1]}
27... Bd5 {[%clk 0:00:13.2]} 28. f3 {[%clk 0:00:48.8]} 28... Kf7 {[%clk
0:00:10.4]} 29. Re7+ {[%clk 0:00:46.3]} 29... Kg6 {[%clk 0:00:10.4]} 30. Rc7
{[%clk 0:00:46.9]} 30... Rd1+ {[%clk 0:00:09.1]} 31. Kf2 {[%clk 0:00:46.8]}
31... Rd2+ {[%clk 0:00:09.1]} 32. Kg3 {[%clk 0:00:46.8]} 32... Ra2 {[%clk
0:00:08.3]} 33. a5 {[%clk 0:00:42.8]} 33... Rb2 {[%clk 0:00:06.8]} 34. Bf8
{[%clk 0:00:39.1]} 34... Rxb4 {[%clk 0:00:06.2]} 35. c6 {[%clk 0:00:37.8]} 35...
Rb5 {[%clk 0:00:04.1]} 36. Rxg7+ {[%clk 0:00:37.2]} 36... Kf5 {[%clk 0:00:03.7]}
37. c7 {[%clk 0:00:37.6]} 37... Rc5 {[%clk 0:00:03.2]} 38. Bxc5 {[%clk
0:00:37.4]} 1-0

[Event "*** Titled Tuesday Blitz"]
[Site "Chess.com"]
[Date "2020.10.20"]
[Round "2"]
[White "Kaslask"]
[Black "Mikhail_Golubev"]
[Result "0-1"]
[WhiteElo "2300"]
[BlackElo "2523"]
[TimeControl "180+1"]
[EndTime "10:17:50 PDT"]
[Termination "Mikhail_Golubev won on time"]

1. d4 {[%clk 0:03:00.9]} 1... Nf6 {[%clk 0:02:59]} 2. c4 {[%clk 0:03:00.7]} 2...
g6 {[%clk 0:02:58.3]} 3. Nc3 {[%clk 0:02:59.6]} 3... Bg7 {[%clk 0:02:58.9]} 4.
e4 {[%clk 0:02:59.7]} 4... d6 {[%clk 0:02:59.4]} 5. Be2 {[%clk 0:02:59.8]} 5...
O-O {[%clk 0:02:59]} 6. Be3 {[%clk 0:02:59.5]} 6... Nc6 {[%clk 0:02:51.7]} 7.
Nf3 {[%clk 0:02:48]} 7... Ng4 {[%clk 0:02:49.8]} 8. Bg5 {[%clk 0:02:45.9]} 8...
h6 {[%clk 0:02:41.2]} 9. Bh4 {[%clk 0:02:45.4]} 9... g5 {[%clk 0:02:41.3]} 10.
Bg3 {[%clk 0:02:45]} 10... e5 {[%clk 0:02:41.4]} 11. d5 {[%clk 0:02:43.5]} 11...
Nd4 {[%clk 0:02:34.9]} 12. Nxd4 {[%clk 0:02:41.8]} 12... exd4 {[%clk 0:02:34.8]}
13. Nb5 {[%clk 0:02:41.6]} 13... Nf6 {[%clk 0:02:20.3]} 14. f3 {[%clk
0:02:32.6]} 14... Nh5 {[%clk 0:02:20.1]} 15. Nxd4 {[%clk 0:02:29.4]} 15... Nxg3
{[%clk 0:02:14.5]} 16. hxg3 {[%clk 0:02:27.9]} 16... Qf6 {[%clk 0:02:08.1]} 17.
Nb3 {[%clk 0:02:25]} 17... Qxb2 {[%clk 0:02:00.3]} 18. O-O {[%clk 0:02:10.6]}
18... Qe5 {[%clk 0:01:54]} 19. Qe1 {[%clk 0:02:07.4]} 19... f5 {[%clk
0:01:50.1]} 20. exf5 {[%clk 0:02:05.6]} 20... Bxf5 {[%clk 0:01:48.4]} 21. Rd1
{[%clk 0:02:02.4]} 21... Rae8 {[%clk 0:01:45]} 22. Rd2 {[%clk 0:01:49.3]} 22...
Qe3+ {[%clk 0:01:35.6]} 23. Qf2 {[%clk 0:01:45.8]} 23... Bc3 {[%clk 0:01:28.7]}
24. g4 {[%clk 0:00:31.7]} 24... Bxd2 {[%clk 0:01:22.2]} 25. gxf5 {[%clk
0:00:25.4]} 25... Qxf2+ {[%clk 0:00:59.2]} 26. Kxf2 {[%clk 0:00:24.2]} 26...
Be3+ {[%clk 0:00:58.8]} 27. Ke1 {[%clk 0:00:22.3]} 27... Rxf5 {[%clk 0:00:59.3]}
28. Kd1 {[%clk 0:00:19.6]} 28... Rfe5 {[%clk 0:00:58]} 29. Bd3 {[%clk
0:00:19.4]} 29... Kg7 {[%clk 0:00:56]} 30. Be4 {[%clk 0:00:14.4]} 30... g4
{[%clk 0:00:45]} 31. Re1 {[%clk 0:00:13.8]} 31... Bf2 {[%clk 0:00:42.8]} 32. Re2
{[%clk 0:00:13]} 32... g3 {[%clk 0:00:42.9]} 33. Nd2 {[%clk 0:00:11.7]} 33... h5
{[%clk 0:00:38.5]} 34. Kc2 {[%clk 0:00:10.5]} 34... h4 {[%clk 0:00:37.7]} 35.
Nf1 {[%clk 0:00:07.5]} 35... h3 {[%clk 0:00:33.9]} 36. Nxg3 {[%clk 0:00:06]}
36... Bxg3 {[%clk 0:00:32.3]} 37. gxh3 {[%clk 0:00:06.6]} 37... Bf4 {[%clk
0:00:32]} 0-1

[Event "*** Titled Tuesday Blitz"]
[Site "Chess.com"]
[Date "2020.10.20"]
[Round "2"]
[White "FMalexhdez"]
[Black "Grieve72"]
[Result "0-1"]
[WhiteElo "2265"]
[BlackElo "2453"]
[TimeControl "180+1"]
[EndTime "10:17:50 PDT"]
[Termination "Grieve72 won by resignation"]

1. e4 {[%clk 0:02:50.3]} 1... c5 {[%clk 0:02:59.5]} 2. Nf3 {[%clk 0:02:50.4]}
2... e6 {[%clk 0:02:59.2]} 3. d4 {[%clk 0:02:51.3]} 3... cxd4 {[%clk 0:02:59.1]}
4. Nxd4 {[%clk 0:02:51.8]} 4... Nc6 {[%clk 0:02:59.4]} 5. c4 {[%clk 0:02:48.8]}
5... Nf6 {[%clk 0:02:57.6]} 6. Nc3 {[%clk 0:02:47.5]} 6... Bb4 {[%clk
0:02:57.8]} 7. Nxc6 {[%clk 0:02:45.6]} 7... bxc6 {[%clk 0:02:58.7]} 8. Bd3
{[%clk 0:02:38]} 8... e5 {[%clk 0:02:58.7]} 9. O-O {[%clk 0:02:36]} 9... O-O
{[%clk 0:02:56.7]} 10. Bg5 {[%clk 0:02:30.9]} 10... h6 {[%clk 0:02:51.9]} 11.
Bh4 {[%clk 0:02:31.1]} 11... g5 {[%clk 0:02:41.8]} 12. Bg3 {[%clk 0:02:31]}
12... d6 {[%clk 0:02:42.1]} 13. h4 {[%clk 0:02:06.1]} 13... Kg7 {[%clk
0:02:28.6]} 14. Qd2 {[%clk 0:01:59.4]} 14... Nh5 {[%clk 0:02:26.3]} 15. Bh2
{[%clk 0:01:55.3]} 15... gxh4 {[%clk 0:02:12.2]} 16. Be2 {[%clk 0:01:40.3]}
16... Kg6 {[%clk 0:01:28]} 17. a3 {[%clk 0:01:29.6]} 17... Bc5 {[%clk
0:01:26.1]} 18. b4 {[%clk 0:01:28.2]} 18... Bd4 {[%clk 0:01:25.8]} 19. Kh1
{[%clk 0:01:14.3]} 19... Qg5 {[%clk 0:01:20.4]} 20. Bxh5+ {[%clk 0:01:03.8]}
20... Kxh5 {[%clk 0:01:16.2]} 21. f4 {[%clk 0:01:01.9]} 21... Qg6 {[%clk
0:00:47.3]} 22. fxe5 {[%clk 0:00:59.2]} 22... dxe5 {[%clk 0:00:45.6]} 23. Rae1
{[%clk 0:00:32.9]} 23... Bg4 {[%clk 0:00:31.2]} 24. Ne2 {[%clk 0:00:27.8]} 24...
Rad8 {[%clk 0:00:24]} 25. Nxd4 {[%clk 0:00:26.3]} 25... Rxd4 {[%clk 0:00:24.1]}
26. Qf2 {[%clk 0:00:19]} 26... f5 {[%clk 0:00:18.6]} 27. Bxe5 {[%clk 0:00:18]}
27... Rxc4 {[%clk 0:00:19.1]} 28. exf5 {[%clk 0:00:12.1]} 28... Rxf5 {[%clk
0:00:19.2]} 29. Qd2 {[%clk 0:00:09.5]} 29... Qg5 {[%clk 0:00:13.4]} 30. Bh2
{[%clk 0:00:07]} 30... Qxd2 {[%clk 0:00:12.5]} 0-1

[Event "*** Titled Tuesday Blitz"]
[Site "Chess.com"]
[Date "2020.10.20"]
[Round "2"]
[White "MFBerna"]
[Black "beto-betun"]
[Result "1-0"]
[WhiteElo "2415"]
[BlackElo "2174"]
[TimeControl "180+1"]
[EndTime "10:17:50 PDT"]
[Termination "MFBerna won by resignation"]

1. d4 {[%clk 0:03:00.9]} 1... Nf6 {[%clk 0:02:56.3]} 2. Nf3 {[%clk 0:02:57.4]}
2... g6 {[%clk 0:02:55.3]} 3. b3 {[%clk 0:02:57.7]} 3... Bg7 {[%clk 0:02:55.2]}
4. Bb2 {[%clk 0:02:58.6]} 4... O-O {[%clk 0:02:55.7]} 5. e3 {[%clk 0:02:59]}
5... d6 {[%clk 0:02:54.8]} 6. Be2 {[%clk 0:02:59.5]} 6... c5 {[%clk 0:02:51.7]}
7. O-O {[%clk 0:02:58.6]} 7... cxd4 {[%clk 0:02:47.9]} 8. Nxd4 {[%clk
0:02:54.6]} 8... Nc6 {[%clk 0:02:46.4]} 9. Nd2 {[%clk 0:02:50.3]} 9... Bd7
{[%clk 0:02:43.4]} 10. c4 {[%clk 0:02:47.3]} 10... a6 {[%clk 0:02:30.9]} 11. Rc1
{[%clk 0:02:43.6]} 11... Rc8 {[%clk 0:02:30.4]} 12. N2f3 {[%clk 0:02:41.4]}
12... Qc7 {[%clk 0:02:26.2]} 13. h3 {[%clk 0:02:27.2]} 13... h6 {[%clk
0:01:58.5]} 14. Nxc6 {[%clk 0:02:24.2]} 14... Bxc6 {[%clk 0:01:58.2]} 15. Nd4
{[%clk 0:02:23.7]} 15... Bd7 {[%clk 0:01:51.9]} 16. Bf3 {[%clk 0:02:23.2]} 16...
b6 {[%clk 0:01:50.5]} 17. Ne2 {[%clk 0:02:09.1]} 17... Rfd8 {[%clk 0:01:43.2]}
18. Nf4 {[%clk 0:02:04.7]} 18... Bf5 {[%clk 0:01:35.4]} 19. Bxf6 {[%clk
0:02:00.6]} 19... Bxf6 {[%clk 0:01:31.9]} 20. Nd5 {[%clk 0:02:01.5]} 20... Qb8
{[%clk 0:01:27.6]} 21. Nxf6+ {[%clk 0:02:01]} 21... exf6 {[%clk 0:01:28.5]} 22.
Qd4 {[%clk 0:01:59.5]} 22... Kg7 {[%clk 0:01:23.2]} 23. Rfd1 {[%clk 0:01:59.3]}
23... Qc7 {[%clk 0:01:18.4]} 24. a4 {[%clk 0:01:54]} 24... Rd7 {[%clk
0:01:15.1]} 25. Qf4 {[%clk 0:01:39.4]} 25... Be6 {[%clk 0:01:03.5]} 26. Bd5
{[%clk 0:01:19.5]} 26... Qc5 {[%clk 0:00:53.1]} 27. e4 {[%clk 0:01:10.9]} 27...
Qb4 {[%clk 0:00:47.3]} 28. Rd3 {[%clk 0:01:04.9]} 28... a5 {[%clk 0:00:41.5]}
29. Rf3 {[%clk 0:01:01.8]} 29... f5 {[%clk 0:00:28.5]} 30. exf5 {[%clk
0:01:01.1]} 30... Bxf5 {[%clk 0:00:28.5]} 31. Qd4+ {[%clk 0:00:59]} 31... Kh7
{[%clk 0:00:26.6]} 32. Rxf5 {[%clk 0:00:43.5]} 32... gxf5 {[%clk 0:00:27.5]} 33.
Qd3 {[%clk 0:00:25.2]} 33... Rcd8 {[%clk 0:00:18.1]} 34. Qxf5+ {[%clk
0:00:24.6]} 34... Kg7 {[%clk 0:00:18.5]} 35. Rd1 {[%clk 0:00:22.2]} 35... Qc3
{[%clk 0:00:17.2]} 36. Rd3 {[%clk 0:00:20.4]} 36... Qxc4 {[%clk 0:00:14.6]} 37.
bxc4 {[%clk 0:00:17.3]} 1-0

[Event "*** Titled Tuesday Blitz"]
[Site "Chess.com"]
[Date "2020.10.20"]
[Round "2"]
[White "sergeikim"]
[Black "GM_Levan_Pantsulaia"]
[Result "0-1"]
[WhiteElo "2533"]
[BlackElo "2851"]
[TimeControl "180+1"]
[EndTime "10:17:51 PDT"]
[Termination "GM_Levan_Pantsulaia won on time"]

1. d4 {[%clk 0:03:00.9]} 1... Nf6 {[%clk 0:02:59.7]} 2. c4 {[%clk 0:03:00.4]}
2... c5 {[%clk 0:02:58.6]} 3. d5 {[%clk 0:02:59.2]} 3... e6 {[%clk 0:02:58.9]}
4. Nc3 {[%clk 0:02:58.5]} 4... exd5 {[%clk 0:02:57.3]} 5. cxd5 {[%clk
0:02:59.4]} 5... d6 {[%clk 0:02:58]} 6. e4 {[%clk 0:02:58.5]} 6... g6 {[%clk
0:02:56.3]} 7. Nge2 {[%clk 0:02:58.2]} 7... Bg7 {[%clk 0:02:52.1]} 8. Ng3 {[%clk
0:02:57.8]} 8... h5 {[%clk 0:02:47.1]} 9. h4 {[%clk 0:02:56.8]} 9... O-O {[%clk
0:02:42]} 10. Bg5 {[%clk 0:02:54.1]} 10... Re8 {[%clk 0:02:37.1]} 11. Be2 {[%clk
0:02:52.9]} 11... Na6 {[%clk 0:02:31.8]} 12. O-O {[%clk 0:02:45.7]} 12... Nc7
{[%clk 0:02:30.6]} 13. a4 {[%clk 0:02:43.2]} 13... a6 {[%clk 0:02:22.5]} 14. Qd2
{[%clk 0:02:42.3]} 14... Qd7 {[%clk 0:02:15.5]} 15. f4 {[%clk 0:02:31.8]} 15...
Nh7 {[%clk 0:02:11.6]} 16. f5 {[%clk 0:02:28.4]} 16... Rb8 {[%clk 0:01:54.7]}
17. f6 {[%clk 0:01:58.1]} 17... Bh8 {[%clk 0:01:53.4]} 18. Bxh5 {[%clk
0:01:44.3]} 18... gxh5 {[%clk 0:01:38.9]} 19. Nf5 {[%clk 0:01:36.9]} 19... Re5
{[%clk 0:01:28.5]} 20. Qe2 {[%clk 0:00:58.2]} 20... Qxf5 {[%clk 0:01:11.5]} 21.
Rxf5 {[%clk 0:00:53.1]} 21... Bxf5 {[%clk 0:01:11.3]} 22. Bf4 {[%clk 0:00:40.2]}
22... Bg4 {[%clk 0:01:11.3]} 23. Qd2 {[%clk 0:00:30.7]} 23... Bxf6 {[%clk
0:01:10.4]} 24. Bxe5 {[%clk 0:00:28.4]} 24... Bxe5 {[%clk 0:01:11.3]} 25. Rf1
{[%clk 0:00:25.3]} 25... b5 {[%clk 0:01:05]} 26. Kh1 {[%clk 0:00:23]} 26... bxa4
{[%clk 0:01:03.3]} 27. Qf2 {[%clk 0:00:21.3]} 27... Nf6 {[%clk 0:00:58.1]} 28.
Qe3 {[%clk 0:00:19.5]} 28... Nce8 {[%clk 0:00:55.8]} 29. Qg5+ {[%clk 0:00:17.3]}
29... Kf8 {[%clk 0:00:56.1]} 30. Nxa4 {[%clk 0:00:16.3]} 30... Nxe4 {[%clk
0:00:51.8]} 31. Qh6+ {[%clk 0:00:13.2]} 31... Ke7 {[%clk 0:00:41.4]} 32. Re1
{[%clk 0:00:12.3]} 32... N8f6 {[%clk 0:00:38.4]} 33. Nc3 {[%clk 0:00:07.2]}
33... Ng3+ {[%clk 0:00:36.6]} 34. Kg1 {[%clk 0:00:06]} 34... Rxb2 {[%clk
0:00:33.8]} 0-1